Cogmind - Beta 15 @@@ ROGUE MODE // 2025.10.13 @ 23:06:27 Player: NQH Result: Destroyed by G-34 Mercenary with Small Laser Performance ------------- Evolutions (1) 500 Regions Visited (2) 400 Robots Destroyed (14) 70 Value Destroyed (360) 360 Prototype IDs (0) 0 Alien Tech Used (0) 0 Bonus (0) 0 TOTAL SCORE: 1330 Bonus ------- None Cogmind --------- Core Integrity 0/400 Matter 253/300 Energy 100/100 System Corruption 1% Temperature Cool (6) Movement Core (50) Location -9/Materials Parts ------- > --- POWER (1) -------- (None) > --- PROPULSION (2) --- (None) > --- UTILITY (4) ------ Propulsion Shielding > --- WEAPON (2) ------- Hammer > --- INVENTORY (5) ---- Light Ion Engine Improved Heat Sink Visual Processing Unit Targeting Computer Light Armor Plating Peak State ------------ > --- POWER ------------ Light Ion Engine > --- PROPULSION ------- Flight Unit Flight Unit > --- UTILITY ---------- Signal Interpreter Propulsion Shielding > --- WEAPON ----------- Light Assault Rifle Heavy Assault Rifle > --- INVENTORY -------- Light Ion Engine Improved Heat Sink Signal Interpreter Targeting Computer Light Armor Plating [Rating: 8] Favorites ----------- Power Ion Engine Engine Ion Engine Propulsion Flight Unit Wheel Compact Wheel Flight Unit Flight Unit Utility Signal Interpreter Device Heat Sink Storage Small Storage Unit Processor Signal Interpreter Protection Propulsion Shielding Weapon Assault Rifle Energy Gun Medium Laser Ballistic Gun Assault Rifle Impact Weapon Hammer Slashing Weapon Mining Claw Build | -11 -10 -9 ------- Run | Yrd Mat Mat Slots Evolved 2 | . . 2 Power . | . . . Propulsion . | . . . Utility 2 | . . 2 Weapon . | . . . Parts Attached 24 | 7 14 3 Power 2 | 1 1 . Engine 2 | 1 1 . Core . | . . . Reactor . | . . . Propulsion 7 | 2 5 . Treads . | . . . Leg . | . . . Wheel 2 | 2 . . Hover . | . . . Flight 5 | . 5 . Utility 5 | 1 4 . Device 1 | . 1 . Storage 1 | 1 . . Processor 1 | . 1 . Hackware . | . . . Protection 2 | . 2 . Artifact . | . . . Weapon 10 | 3 4 3 Energy Gun 1 | 1 . . Energy Cannon . | . . . Ballistic Gun 6 | 2 4 . Ballistic Cannon . | . . . Launcher . | . . . Special Weapon . | . . . Impact Weapon 2 | . . 2 Slashing Weapon 1 | . . 1 Piercing Weapon . | . . . Special Melee Weapon . | . . . Unidentified Prototypes . | . . . Parts Lost 7 | . 2 5 Power 2 | . 1 1 Propulsion 3 | . 1 2 Utility 1 | . . 1 Weapon 1 | . . 1 Highest Loss Streak 5 | . 1 5 To Critical Strikes 2 | . 1 1 Average Backups 3 | . 3 5 Power . | . . 1 Propulsion . | . . . Utility 2 | . 2 4 Weapon . | . . . Tool/Special . | . . . Unused Backups 5 | . 1 4 Power 1 | . . 1 Propulsion . | . . . Utility 4 | . 1 3 Weapon . | . . . Tool/Special . | . . . Average Slot Usage (%) 83 | . 91 47 Engine 11 | . 13 2 Wheel 11 | . 13 . Flight 12 | . 13 10 Storage 6 | . 7 . Processor 11 | . 12 6 Protection 4 | . 2 11 Ballistic Gun 22 | . 25 5 Impact Weapon 1 | . . 10 Peak Build Rating 8 | 6 8 8 Average Rating 5 | 3 6 4 On Entrance 4 | . 6 8 Naked Turns . | . . . Heaviest Build 14 | 14 14 8 Greatest Support 26 | 26 26 8 Greatest Overweight (x) 4 | . 4 1 Average Overweight (x) . | . . . Largest Inventory Capacity 8 | 8 8 5 Average Capacity 6 | 6 6 5 Most Carried 5 | 1 5 5 Average Carried 3 | . 3 5 Final Capacity 8 | 8 5 5 Final Carried 5 | . 5 5 Class Distribution -------------------- 81% | Mutant 18% | Scavenger-Mutant Dominant Class ---------------- Mutant | -10/Materials Mutant | -9/Materials Resources | -11 -10 -9 ----------- Run | Yrd Mat Mat Matter Collected 530 | 229 250 51 Remotely . | . . . Salvage Created 425 | . 288 137 Parts 21 | . 16 5 Haulers Intercepted . | . . . Recyclers Shooed 1 | . 1 . Parts Field Recycled . | . . . Retrieved Matter . | . . . Parts Self-Destructed . | . . . Prevented . | . . . Kills | -11 -10 -9 ------- Run | Yrd Mat Mat Combat Hostiles Destroyed 14 | . 11 3 Melee 2 | . . 2 Guns 11 | . 11 . Classes Destroyed 3 | . 2 1 Swarmer 6 | . 6 . Grunt 7 | . 5 2 Brawler 1 | . . 1 Best Kill Streak 3 | . 3 3 Combat Bots Only 3 | . 3 3 Max Kills in Single Turn 1 | . 1 1 Gunslinging . | . . . Exploded . | . . . Melee 1 | . . 1 Uniques/NPCs Destroyed . | . . . Combat | -11 -10 -9 -------- Run | Yrd Mat Mat Hostile Shots Fired 145 | . 81 64 Missed 48 | . 31 17 Hits 97 | . 50 47 Melee 8 | . . 8 Projectile 89 | . 50 39 Critical Strikes 5 | . 1 4 Damage Taken 1262 | . 571 691 Core 576 | . 172 404 Absorbed by Shields . | . . . Redirected to Shielding 17 | . . 17 Core Remaining (%) 65 | 100 31 . Volleys Fired 42 | . 42 . Largest 2 | . 2 . Hottest 40 | . 40 . Shots Fired 76 | . 76 . Gun 76 | . 76 . Cannon . | . . . Launcher . | . . . Special . | . . . Kinetic 76 | . 76 . Thermal . | . . . Explosive . | . . . Electromagnetic . | . . . Robot Hit Streak 9 | . 9 . Robot Miss Streak 3 | . 3 . Penetration Max . | . . . Secondary Targets 1 | . 1 . Max Gunslinging Chain 1 | . 1 . Shots Hit Robots 75 | . 57 18 Core Hits 22 | . 18 4 Critical Kills . | . . . Critical Parts Destroyed . | . . . Critical Strikes . | . . . Melee Attacks 22 | . . 22 Impact 18 | . . 18 Slashing 4 | . . 4 Piercing . | . . . Sneak Attacks . | . . . Combat Hostiles . | . . . Follow-up Attacks . | . . . Damage Inflicted 1131 | . 661 470 Guns 659 | . 659 . Cannons . | . . . Explosions . | . . . Melee 470 | . . 470 Ramming 2 | . 2 . Kinetic 659 | . 659 . Thermal . | . . . Explosive . | . . . Electromagnetic . | . . . Impact 447 | . . 447 Slashing 23 | . . 23 Piercing . | . . . Highest Corruption 1 | . . 1 Average Corruption 1 | . . 1 Corruption Purged . | . . . Corruption Blocked . | . . . Overload Shots . | . . . Overflow Damage 6 | . . 6 Projectiles . | . . . Explosions . | . . . Melee 6 | . . 6 Knockbacks 1 | . . 1 Impact 1 | . . 1 Kinetic . | . . . Secondary . | . . . Self-Inflicted Damage 1 | . 1 . Shots . | . . . Rammed 1 | . 1 . Targets Rammed 1 | . 1 . Kicked . | . . . Crushed . | . . . Highest Temperature 34 | . 34 2 Average Temperature 9 | . 9 2 Received Heat Transfer 567 | . 243 324 Siege Activations . | . . . Martial Activations . | . . . Shielding Activations . | . . . Robots Disrupted . | . . . Combat Hostiles . | . . . Robots Corrupted 1 | . . 1 Combat Hostiles 1 | . . 1 Parts Fried . | . . . Impact Corruptions 1 | . . 1 Robots Melted . | . . . Combat Hostiles . | . . . Parts Melted . | . . . Heat Transferred . | . . . Parts Sabotaged . | . . . Parts Stolen . | . . . Parts Stripped . | . . . Power Chain Reactions . | . . . Alert | -11 -10 -9 ------- Run | Yrd Mat Mat Maximum Alert Level . | . . . Low Security (%) 100 | 100 100 100 Level 1 . | . . . Level 2 . | . . . Level 3 . | . . . Level 4 . | . . . Level 5 . | . . . High Security . | . . . Max Security . | . . . Peak Influence 151 | . 151 75 Initial 42 | . . 42 Average 55 | . 67 26 Influence Increases 423 | . 328 95 Destroy 0b10 Robot/C 280 | . 220 60 Destroy Leader 70 | . 50 20 Successful Hack 13 | . 13 . Lose Combat Pursuer 60 | . 45 15 Influence Decreases 348 | . 225 123 Entered New Map 61 | . . 61 Time Decay 237 | . 205 32 Lost Part 50 | . 20 30 Squads Dispatched 4 | . 2 2 Investigation 2 | . 1 1 Extermination . | . . . Reinforcement 2 | . 1 1 Assault . | . . . Garrison . | . . . Intercept . | . . . Searches Triggered . | . . . Construction Impeded . | . . . Haulers Reinforced . | . . . Active Scanning Responses . | . . . Cargo Convoy Interrupts . | . . . Stealth | -11 -10 -9 --------- Run | Yrd Mat Mat Distress Signals 2 | . 1 1 Communications Jammed . | . . . Distress Signals . | . . . Times Spotted 32 | . 24 8 Peak Tracking Total 6 | . 4 6 Tactical Retreats 3 | . 2 1 Traps | -11 -10 -9 ------- Run | Yrd Mat Mat Traps Triggered 1 | . . 1 Indirectly . | . . . Trap Hack Attempts . | . . . Triggered . | . . . Disarmed . | . . . Reprogrammed . | . . . Reused . | . . . Traps Extracted . | . . . Installed . | . . . Triggered . | . . . Machines | -11 -10 -9 ---------- Run | Yrd Mat Mat Machines Disabled . | . . . Max in Single Turn . | . . . Machines Repaired . | . . . Machines Dismantled . | . . . Machines Sabotaged . | . . . Overloaded Fab Kills . | . . . Hacking | -11 -10 -9 --------- Run | Yrd Mat Mat Machines Accessed 8 | . 6 2 Terminals 7 | . 5 2 Fabricators . | . . . Repair Stations . | . . . Recycling Units 1 | . 1 . Scanalyzers . | . . . Garrison Access . | . . . Total Hacks 14 | . 12 2 Successful 9 | . 7 2 Failed 5 | . 5 . Catastrophic . | . . . Database Lockouts . | . . . Manual 11 | . 9 2 Terminals 11 | . 9 2 Fabricators . | . . . Repair Stations . | . . . Recycling Units 3 | . 3 . Scanalyzers . | . . . Garrison Access . | . . . Terminal Hacks . | . . . Fabricator Hacks . | . . . Repair Station Hacks . | . . . Recycling Unit Hacks . | . . . Scanalyzer . | . . . Garrison Access Hacks . | . . . Unauthorized Hacks 9 | . 7 2 Terminals 9 | . 7 2 Botnet 2 | . 2 . Skim 7 | . 5 2 Fabricators . | . . . Repair Stations . | . . . Recycling Units . | . . . Scanalyzers . | . . . Garrison Access . | . . . Data Cores Recovered . | . . . Used . | . . . Hacking Detections 2 | . 2 . Full Trace Events 2 | . 2 . Feedback Events . | . . . Feedback Blocked . | . . . Robot Schematics Acquired . | . . . Robots Built . | . . . Authchips . | . . . Time . | . . . Total Robot Build Rating . | . . . Part Schematics Acquired . | . . . Parts Built . | . . . Authchips . | . . . Time . | . . . Total Part Build Rating . | . . . Parts Repaired . | . . . Time . | . . . Parts Recycled . | . . . Recycled Matter . | . . . Retrieved Matter . | . . . Retrieved Components . | . . . Parts Scanalyzed . | . . . Part Schematics Acquired . | . . . Parts Damaged . | . . . Bothacking | -11 -10 -9 ------------ Run | Yrd Mat Mat Used RIF Installer . | . . . Robots Hacked . | . . . Non-combat . | . . . Combat . | . . . Robot Hacks Applied . | . . . Relay Couplers Released . | . . . Fabnet Peak Effective % . | . . . Robots Rewired . | . . . Allies Hacked . | . . . Hacks Repelled . | . . . Allies | -11 -10 -9 -------- Run | Yrd Mat Mat Total Allies . | . . . Largest Group . | . . . Highest-Rated Group . | . . . Highest-Rated Ally . | . . . Total Orders . | . . . Ally Attacks . | . . . Total Damage . | . . . Kills . | . . . Allies Corrupted . | . . . Allies Melted . | . . . Intel | -11 -10 -9 ------- Run | Yrd Mat Mat Active Infowar (turns) . | . . . Robot Analysis Total . | . . . Derelict Logs Recovered . | . . . Drone Launches . | . . . Drone Recoveries . | . . . Exploration | -11 -10 -9 ------------- Run | Yrd Mat Mat Turns Passed 703 | 59 529 115 Spaces Moved 855 | 56 690 109 Core 21 | 4 1 16 Treads . | . . . Legs . | . . . Wheels 242 | 52 190 . Hover . | . . . Flight 592 | . 499 93 Fastest Speed 37 | 50 37 37 Average Speed 54 | 86 53 44 Slowest Speed 280 | 90 280 120 Overloaded Moves . | . . . Propulsion Burnouts . | . . . Robots Hopped 18 | . 17 1 Potential Cave-ins . | . . . Cave-ins Triggered . | . . . Exploration Rate (%) 29 | 3 75 9 Regions Visited 2 Branch Regions . Pre-discovered Areas . | . . . Known Exits Taken 1 | . 1 . Unknown Exits Taken 1 | 1 . . Scrap Searched . | . . . Spaces Dug . | . . . Terrain Destroyed . | . . . Melee . | . . . Projectile . | . . . AOE . | . . . Terrain Rammed . | . . . Walls Destroyed . | . . . Machines Disabled . | . . . Actions | -11 -10 -9 --------- Run | Yrd Mat Mat Total 967 | 64 767 136 Wait 18 | . 18 . Move 817 | 55 655 107 Hop 18 | . 17 1 Pick Up 5 | . 5 . Fast Attach 19 | 7 9 3 Attach . | . . . Detach 5 | 1 4 . Swap 5 | . 5 . Drop 15 | 1 11 3 Fire 42 | . 42 . Melee 22 | . . 22 Ram 1 | . 1 . Kick . | . . . Crush . | . . . Escape Stasis . | . . . Rewire . | . . . Trap . | . . . Miscellaneous . | . . . Route ------- -11/Scrapyard -10/Materials (discovered 5 exits: *Mat x3 / *Min x2) -9/Materials History --------- Turn | Location | Event 14 | -11/Scrapyard | Discovered new exit (range 16) 60 | -11/Scrapyard | Entered Materials 125 | -10/Materials | Discovered new exit (range 7) 177 | -10/Materials | Identified exit to Mines 215 | -10/Materials | Discovered new exit (range 15) 302 | -10/Materials | Build established: Mutant 348 | -10/Materials | Discovered new exit (range 15) 353 | -10/Materials | Identified exit to Materials 410 | -10/Materials | Core integrity fell below 50% 474 | -10/Materials | Discovered exit to Mines (range 13) 586 | -10/Materials | Discovered exit to Materials (range 9) 589 | -10/Materials | Entered another Materials area 589 | -9/Materials | Evolved 2 slots: Utility x2 667 | -9/Materials | Core integrity fell below 50% 681 | -9/Materials | Core integrity fell below 20% 703 | -9/Materials | Lost 5 parts (1p2n1u1w) 704 | -9/Materials | Destroyed by G-34 Mercenary with Small Laser Last Messages --------------- 00636_ Acquired Hammer. 00646_ Hadron Collector disabled. 00648_ Critical hit (Burn: +37). 00651_ Critical hit (Smash). 00651_ Signal Interpreter destroyed. 00651_ System corrupted by crushing effect (+1). 00652_ Flight Unit destroyed. 00654_ Critical hit (Burn: +37). 00662_ Knocked back. 00671_ B-36 Bruiser destroyed. 00672_ Hammer destroyed. 00679_ Destroyed Lgt. Nuclear Core. 00679_ G-47 Trooper system corrupted by crushing effect. 00680_ G-47 Trooper system terminally corrupted. 00682_ Acquired 51 matter. 00685_ G-34 Mercenary knocked back. 00691_ G-34 Mercenary destroyed. 00698_ K-01 Serf destroyed. 00698_ K-01 Serf collects debris. Map ----- +----------------------------------------------------+ | | | | | | | | | | | | | | | | | | | | | | | ?????????????????????????##??????????????????????? | | ????????????????????????? ??????????????????????? | | ????????????????????????? ??????????????????????? | | ????????????????????????? ??????????????????????? | | ????????????????????????? ??????????????????????? | | ????????????????????????? ??????????????????????? | | ###########??????????????+#??????????????????????? | | ? #?????????????# ###????????????????????? | | # """ #?????????????# ?????????????????????? | | #""""" =#????##+####### ######?????????????????? | | #""""" ###### # #?????????????????? | | #""""" + =k! g #?????????????????? | | # """ * ###### k# #?????????????????? | | # #????## # #?????????????????? | | # #?????#/ @g ""#?????????????????? | | ###+#######?????# ######### T"#?????????????????? | | #????????#!#???????#[ ""#?????????????????? | | ##########=#???????# [ #?????????????????? | | # !=+%#???????######?????????????????? | | #### # """ *%###??????????????????????????????? | | ???? # """ #????????????????????????????????? | | ???# # """" #????????????????????????????????? | | ???# + #????????????????????????????????? | | ???# # |!#????????????????????????????????? | | ???? # |!#????????????????????????????????? | | ???? # ] /|!#????????????????????????????????? | | ???? # #????????????????????????????????? | | ????? ##########????????????????????????????????? | | ????? #?????????????????????????????????????????? | | ????? #?????????????????????????????????????????? | | ????? ???????????????????????????????????????????? | | ?????????????????????????????????????????????????? | | ?????????????????????????????????????????????????? | | ?????????????????????????????????????????????????? | | ?????????????????????????????????????????????????? | | ?????????????????????????????????????????????????? | | ?????????????????????????????????????????????????? | | ?????????????????????????????????????????????????? | | ?????????????????????????????????????????????????? | +----------------------------------------------------+ Best States ------------- Heat Dissipation 35 Energy Generation 10 Energy Capacity 250 Matter Stores 294 Matter Capacity 300 Sight Range 16 Terrain Scan Density 10 Armor Coverage 150 Propulsion Shielding 33 Evasion (%) 62 Item Schematics ----------------- None Robot Schematics ------------------ None Fabricated ------------ Nothing Repaired ---------- Nothing Alien Tech Used ----------------- None Achievements -------------- None Challenges ------------ None Game ------ Seed ConceptBattleHammer Manual? 0 Play Time 00:08:06 Cumulative 31.6 hours Start 2025.10.13 @ 19:58:35 End 2025.10.13 @ 23:06:27 Sessions 1 Manual Loads 0 Difficulty Rogue Special Mode None Game No. 122 Rogue 122 Adventurer 0 Explorer 0 Win Type - Total 0 Types 0/0/0/0/0/0/0/0/0/0 Lore% 11 Gallery% 31 Achievement% 28 Wizard Run 0 Options --------- Layout 1 ASCII 0 Keyboard 1 Movement Vi Keybinds 0 Fullscreen 1 Font 16/SmallcapsGlow Map View 55x38 Zoom Use 0% Tactical HUD 1 Map Filters NONE Filters NONE Steam 1 RUN: aa5231fe-804f-467f-92be-9f27db8c8e22